[Event "US-ch Women 2018"]
[Site "Saint Louis"]
[Date "2018.04.20"]
[Round "3"]
[White "Goletiani, Rusudan"]
[Black "Wang, Annie"]
[Result "0-1"]
[ECO "A13"]
[WhiteElo "2306"]
[BlackElo "2321"]
[Annotator "RC"]
[PlyCount "110"]
[EventDate "2018.??.??"]
[EventType "tourn"]
[EventCountry "USA"]
[SourceTitle "playchess.com"]
[Source "ChessBase"]
[SourceQuality "1"]
[TimeControl "40/5400+30:1800+30"]

1. c4 {[%emt 0:00:00]} e6 {[%emt 0:00:06]} 2. Nf3 {[%emt 0:00:01]} Nf6 {[%emt 0:00:07]} 3. b3 {[%emt 0:00:39]} d5 {[%emt 0:00:43]} 4. e3 {[%emt 0:00:13]} Be7 {[%emt 0:00:53]} 5. g3 {[%emt 0:01:17]} c5 {[%emt 0:01:24]} 6. Bg2 {[%emt 0:00:59]} O-O {[%emt 0:00:53]} 7. O-O {[%emt 0:00:59]} b6 {[%emt 0:00:26]} 8. Bb2 {[%emt 0:01:56]} Bb7 {[%emt 0:00:46]} 9. Nc3 {[%emt 0:08:01]} Nc6 {[%emt 0:03:17]} 10. cxd5 {[%emt 0:00:32]} Nxd5 {[%emt 0:05:24]} 11. Nxd5 {[%emt 0:01:21]} exd5 {[%emt 0:00:12]} 12. d4 {[%emt 0:00:21]} Ba6 {[%emt 0:09:11]} 13. Re1 {[%emt 0:01:25]} c4 {[%emt 0:10:40]} 14. e4 {[%emt 0:25:48]} Bb4 {[%emt 0:14:59]} 15. exd5 {[%emt 0:07:49]} Ne7 {[%emt 0:12:44]} 16. d6 {[%emt 0:08:05]} Qxd6 {[%emt 0:03:26]} 17. Nd2 {[%emt 0:00:14]} Rac8 {[%emt 0:09:21]} 18. bxc4 {[%emt 0:02:56]} Bxc4 {[%emt 0:01:29]} 19. Nxc4 {[%emt 0:07:04]} Rxc4 {[%emt 0:00:08]} 20. Re5 {[%emt 0:03:02]} Ng6 {[%emt 0:01:58]} 21. Re3 {[%emt 0:03:52]} Qc7 {[%emt 0:03:08]} 22. d5 {[%emt 0:04:19]} Bc5 {[%emt 0:02:52]} 23. Re2 {[%emt 0:02:58]} Rc8 {[%emt 0:00:54]} 24. Qd3 {[%emt 0:03:36]} Bb4 {[%emt 0:01:35]} 25. Rd1 {[%emt 0:00:51]} Rd8 {[%emt 0:01:04]} 26. h4 {[%emt 0:02:26]} Nf8 {[%emt 0:03:44]} 27. a3 {[%emt 0:03:35]} Bd6 {[%emt 0:00:31]} 28. Rde1 {[%emt 0:04:34]} b5 {[%emt 0:01:02]} 29. h5 {[%emt 0:00:45]} h6 {[%emt 0:01:03]} 30. Re4 {[%emt 0:00:50]} a6 {[%emt 0:04:52]} 31. Bf1 {[%emt 0:00:23]} Rxe4 {[%emt 0:00:58]} 32. Rxe4 {[%emt 0:00:15]} Nd7 {[%emt 0:00:47]} 33. Qe2 {[%emt 0:02:19]} Qb8 {[%emt 0:01:12]} 34. Bh3 {[%emt 0:00:31]} Nb6 {[%emt 0:02:34]} 35. Bg2 {[%emt 0:02:23]} Nc4 {[%emt 0:00:26]} 36. Bd4 {[%emt 0:00:26]} Bxa3 {[%emt 0:00:21]} 37. Rg4 {[%emt 0:00:59]} Bf8 {[%emt 0:00:10]} 38. Qa2 {[%emt 0:00:42]} Qc8 {[%emt 0:01:58]} 39. Bh3 {[%emt 0:00:02]} Qb7 {[%emt 0:00:10]} 40. Qa1 {[%emt 0:00:42]} f5 {[%emt 0:30:46]} 41. Rg6 {[%emt 0:30:36]} Nd6 {[%emt 0:00:23]} 42. Bg2 {[%emt 0:00:00]} Rd7 {[%emt 0:00:00]} 43. Qc1 {[%emt 0:00:00]} Kh7 {[%emt 0:00:00]} 44. g4 {[%emt 0:00:00]} fxg4 {[%emt 0:00:00]} 45. Rxg4 {[%emt 0:00:00]} Rf7 {[%emt 0:00:00]} 46. Qc2+ {[%emt 0:00:00]} Kg8 {[%emt 0:00:00]} 47. Qg6 {[%emt 0:00:00]} Qc8 {[%emt 0:00:00]} 48. Bh3 {[%emt 0:00:00]} Nf5 {[%emt 0:00:00]} 49. Bf6 {[%emt 0:00:00]} Qc2 {[%emt 0:00:00]} 50. Rg3 {[%emt 0:00:00]} Qd1+ {[%emt 0:00:00]} 51. Kh2 {[%emt 0:00:00]} Nxg3 {[%emt 0:00:19]} 52. Be6 {[%emt 0:02:07]} Qxh5+ {[%emt 0:00:27]} 53. Qxh5 {[%emt 0:00:20]} Nxh5 {[%emt 0:00:06]} 54. Be5 {[%emt 0:00:11]} Bc5 {[%emt 0:00:29]} 55. d6 {[%emt 0:01:45]} Nf6 {[%emt 0:00:25]} 0-1

[Event "US-ch Women 2018"]
[Site "Saint Louis"]
[Date "2018.04.25"]
[Round "7"]
[White "Derakhshani, Dorsa"]
[Black "Abrahamyan, Tatev"]
[Result "1/2-1/2"]
[ECO "C18"]
[WhiteElo "2306"]
[BlackElo "2366"]
[Annotator "NA"]
[PlyCount "62"]
[EventDate "2018.??.??"]
[EventType "tourn"]
[EventCountry "USA"]
[SourceTitle "playchess.com"]
[Source "ChessBase"]
[SourceQuality "1"]
[TimeControl "40/5400+30:1800+30"]

{[%evp 22,59,76,99,89,137,106,89,103,108,32767,32767,145,32767,138,140,145,32767,170,200,191,108,120,0,164,165,166,32767,173,122,119,120,115,22,12,18,21,15,22,16]} 1. e4 {[%emt 0:00:00]} e6 {[%emt 0:00:04]} 2. d4 {[%emt 0:00:00]} d5 {[%emt 0:00:03]} 3. Nc3 {[%emt 0:00:00]} Bb4 {[%emt 0:00:05]} 4. e5 {[%emt 0:00:00]} Ne7 {[%emt 0:00:11]} 5. a3 {[%emt 0:00:00]} Bxc3+ {[%emt 0:00:03]} 6. bxc3 {[%emt 0:00:00]} c5 {[%emt 0:00:04]} 7. Qg4 {[%emt 0:00:01]} cxd4 {[%emt 0:00:17]} 8. Qxg7 {[%emt 0:00:22]} Rg8 {[%emt 0:00:06]} 9. Qxh7 {[%emt 0:00:04]} Qc7 {[%emt 0:00:17]} 10. Ne2 {[%emt 0:00:14]} Nbc6 {[%emt 0:00:29]} 11. h4 {[%emt 0:00:37] C18: French: 3 Nc3 Bb4: Main line: 7 h4 and 7 Qg4} (11. f4 dxc3 12. Nxc3 Nd4 13. Bb2 Bd7 14. O-O-O Qb6 15. Qd3 Ndf5 16. Rd2 Rc8 17. g3 Ne3 18. Ne4 Rxc2+ 19. Rxc2 dxe4 20. Qxe4 Nxc2 21. Qxc2 {½-½ (31) Giri,A (2752)-Carlsen,M (2834) Wijk aan Zee 2018}) 11... Qxe5 {[%emt 0:15:47]} (11... dxc3 $11 12. f4 b6) 12. Bf4 {[%emt 0:07:06]} Qf5 {[%emt 0:02:40]} 13. Qxf5 {[%emt 0:00:07]} Nxf5 {[%emt 0:00:03]} 14. cxd4 {[%emt 0:00:11]} Nfxd4 {[%emt 0:00:42]} 15. Nxd4 {[%emt 0:00:08]} Nxd4 {[%emt 0:00:03]} 16. O-O-O {[%emt 0:01:46]} Nc6 {[%emt 0:04:26]} 17. Bg5 {[%emt 0:02:50]} Kf8 $146 {[%emt 0:13:57]} ({Predecessor:} 17... Bd7 18. f4 Rc8 {1-0 (32) Seeck,K-Schmid,L Flensburg 1961}) 18. Bf6 {[%emt 0:06:04]} Rg6 {[%emt 0:09:01]} 19. Bc3 {[%emt 0:00:43]} f6 {[%emt 0:02:35]} 20. h5 {[%emt 0:08:18]} Rh6 $1 $11 {[%emt 0:01:20]} 21. Bd2 {[%emt 0:04:27]} ({White should try} 21. Be2 $18) 21... Rh8 {[%emt 0:01:57] [#]} 22. Bc3 {[%emt 0:00:18]} (22. Be3 $1 $16) 22... Kf7 $2 {[%emt 0:05:26]} 23. f4 {[%emt 0:04:41]} Bd7 {[%emt 0:15:34]} 24. g4 {[%emt 0:05:23]} e5 {[%emt 0:11:04]} 25. g5 {[%emt 0:16:00]} fxg5 {[%emt 0:03:33]} 26. fxg5 {[%emt 0:01:40]} Bg4 {[%emt 0:00:13]} 27. g6+ {[%emt 0:02:27]} (27. Rxd5 $16 Bf3 28. Bc4) 27... Kf6 $1 {[%emt 0:01:42]} 28. g7 {[%emt 0:10:55]} Rxh5 {[%emt 0:01:58]} 29. Rxh5 {[%emt 0:00:12]} Bxh5 {[%emt 0:00:03]} 30. Rxd5 $11 {[%emt 0:00:07]} Kxg7 {[%emt 0:02:48]} 31. Bxe5+ {[%emt 0:08:55]} Nxe5 {[%emt 0:00:06]} 1/2-1/2

[Event "US-ch Women 2018"]
[Site "Saint Louis"]
[Date "2018.04.25"]
[Round "7"]
[White "Gorti, Akshita"]
[Black "Goletiani, Rusudan"]
[Result "1-0"]
[ECO "A04"]
[WhiteElo "2252"]
[BlackElo "2306"]
[Annotator "RC"]
[PlyCount "81"]
[EventDate "2018.??.??"]
[EventType "tourn"]
[EventCountry "USA"]
[SourceTitle "playchess.com"]
[Source "ChessBase"]
[SourceQuality "1"]
[TimeControl "40/5400+30:1800+30"]

1. Nf3 {[%emt 0:00:00]} e6 {[%emt 0:01:44]} 2. c4 {[%emt 0:00:07]} f5 {[%emt 0:02:48]} 3. g3 {[%emt 0:00:26]} b6 {[%emt 0:00:35]} 4. Bg2 {[%emt 0:02:25]} Bb7 {[%emt 0:00:05]} 5. O-O {[%emt 0:01:27]} Nf6 {[%emt 0:00:39]} 6. d3 {[%emt 0:01:13]} g6 {[%emt 0:02:38]} 7. Nc3 {[%emt 0:00:59]} Bg7 {[%emt 0:00:10]} 8. Qc2 {[%emt 0:03:01]} Nc6 {[%emt 0:11:50]} 9. a3 {[%emt 0:01:25]} O-O {[%emt 0:02:49]} 10. b4 {[%emt 0:03:22]} Qe7 {[%emt 0:04:02]} 11. Rb1 {[%emt 0:10:48]} a5 {[%emt 0:02:11]} 12. Qb3 {[%emt 0:01:52]} Kh8 {[%emt 0:10:27]} 13. Bd2 {[%emt 0:05:20]} d6 {[%emt 0:04:53]} 14. Rfc1 {[%emt 0:05:17]} Ng4 {[%emt 0:06:00]} 15. Nb5 {[%emt 0:05:57]} axb4 {[%emt 0:03:52]} 16. axb4 {[%emt 0:00:22]} e5 {[%emt 0:00:23]} 17. h3 {[%emt 0:04:36]} Nf6 {[%emt 0:00:16]} 18. Ne1 {[%emt 0:06:01]} e4 {[%emt 0:06:47]} 19. c5 {[%emt 0:04:42]} Ba6 {[%emt 0:17:46]} 20. cxd6 {[%emt 0:09:10]} cxd6 {[%emt 0:00:05]} 21. Rxc6 {[%emt 0:03:50]} Bxb5 {[%emt 0:00:03]} 22. Rcc1 {[%emt 0:01:51]} d5 {[%emt 0:02:01]} 23. Bc3 {[%emt 0:03:26]} f4 {[%emt 0:01:28]} 24. Bd4 {[%emt 0:13:12]} fxg3 {[%emt 0:03:50]} 25. fxg3 {[%emt 0:00:06]} Qd6 {[%emt 0:01:24]} 26. g4 {[%emt 0:02:28]} Rae8 {[%emt 0:06:58]} 27. Qc3 {[%emt 0:01:39]} Re7 {[%emt 0:00:10]} 28. Nc2 {[%emt 0:02:22]} exd3 {[%emt 0:01:45]} 29. exd3 {[%emt 0:00:09]} Qg3 {[%emt 0:00:31]} 30. Rf1 {[%emt 0:03:26]} Rc7 {[%emt 0:02:38]} 31. Qb2 {[%emt 0:01:44]} Rc6 {[%emt 0:01:22]} 32. Rf3 {[%emt 0:01:08]} Qc7 {[%emt 0:00:16]} 33. Na3 {[%emt 0:00:36]} Bxd3 {[%emt 0:02:56]} 34. Rxd3 {[%emt 0:00:31]} Ne8 {[%emt 0:01:02]} 35. Re1 {[%emt 0:01:11]} Bxd4+ {[%emt 0:00:39]} 36. Qxd4+ {[%emt 0:00:08]} Ng7 {[%emt 0:00:03]} 37. Nb5 {[%emt 0:00:32]} Qc8 {[%emt 0:01:06]} 38. Na7 {[%emt 0:01:06]} Rc1 {[%emt 0:00:43]} 39. Nxc8 {[%emt 0:00:23]} Rxe1+ {[%emt 0:00:05]} 40. Kh2 {[%emt 0:00:08]} Rxc8 {[%emt 0:30:03]} 41. Rf3 {[%emt 0:02:09]} 1-0

[Event "US-ch Women 2018"]
[Site "Saint Louis"]
[Date "2018.04.28"]
[Round "10"]
[White "Feng, Maggie"]
[Black "Foisor, Sabina-Francesca"]
[Result "1/2-1/2"]
[ECO "A01"]
[WhiteElo "2243"]
[BlackElo "2308"]
[Annotator "ChessBase"]
[PlyCount "159"]
[EventDate "2018.??.??"]
[EventType "tourn"]
[EventCountry "USA"]
[SourceTitle "playchess.com"]
[Source "ChessBase"]
[SourceQuality "1"]
[TimeControl "40/5400+30:1800+30"]

1. b3 {[%emt 0:00:00]} d5 {[%emt 0:00:59]} 2. Bb2 {[%emt 0:00:17]} Nf6 {[%emt 0:02:28]} 3. e3 {[%emt 0:01:21]} Bg4 {[%emt 0:05:57]} 4. Nf3 {[%emt 0:03:42]} e6 {[%emt 0:00:55]} 5. h3 {[%emt 0:03:07]} Bh5 {[%emt 0:02:55]} 6. Be2 {[%emt 0:06:57]} Be7 {[%emt 0:03:06]} 7. O-O {[%emt 0:02:52]} O-O {[%emt 0:01:00]} 8. c4 {[%emt 0:00:55]} c6 {[%emt 0:02:28]} 9. d4 {[%emt 0:09:54]} Ne4 {[%emt 0:06:11]} 10. Nbd2 {[%emt 0:08:16]} f5 {[%emt 0:04:28]} 11. Ne5 {[%emt 0:03:03]} Bxe2 {[%emt 0:01:42]} 12. Qxe2 {[%emt 0:00:27]} Nd7 {[%emt 0:01:41]} 13. Nxd7 {[%emt 0:07:37]} Qxd7 {[%emt 0:00:09]} 14. Nxe4 {[%emt 0:00:44]} fxe4 {[%emt 0:00:54]} 15. f3 {[%emt 0:00:17]} exf3 {[%emt 0:05:11]} 16. Rxf3 {[%emt 0:00:21]} Rxf3 {[%emt 0:12:05]} 17. Qxf3 {[%emt 0:00:17]} Bf6 {[%emt 0:01:24]} 18. Rd1 {[%emt 0:07:41]} Rf8 {[%emt 0:05:26]} 19. Qe2 {[%emt 0:00:57]} Qf7 {[%emt 0:03:08]} 20. Ba3 {[%emt 0:10:35]} Rd8 {[%emt 0:01:00]} 21. Qg4 {[%emt 0:01:12]} h5 {[%emt 0:03:42]} 22. Qe2 {[%emt 0:02:45]} Qg6 {[%emt 0:00:18]} 23. Rf1 {[%emt 0:01:00]} Rd7 {[%emt 0:06:15]} 24. Qf3 {[%emt 0:03:36]} Kh7 {[%emt 0:05:49]} 25. cxd5 {[%emt 0:11:37]} exd5 {[%emt 0:00:33]} 26. Qf5 {[%emt 0:01:04]} Qxf5 {[%emt 0:06:17]} 27. Rxf5 {[%emt 0:00:08]} Kg6 {[%emt 0:00:02]} 28. Rf3 {[%emt 0:00:52]} Kf7 {[%emt 0:02:02]} 29. Kf1 {[%emt 0:00:41]} Ke6 {[%emt 0:00:05]} 30. Ke2 {[%emt 0:00:33]} b6 {[%emt 0:02:00]} 31. Kd3 {[%emt 0:00:30]} Rc7 {[%emt 0:02:26]} 32. Rf2 {[%emt 0:02:18]} Rc8 {[%emt 0:00:33]} 33. Rc2 {[%emt 0:01:27]} Kd7 {[%emt 0:00:04]} 34. Rf2 {[%emt 0:02:05]} Re8 {[%emt 0:00:52]} 35. Rf5 {[%emt 0:01:14]} Rh8 {[%emt 0:00:10]} 36. Bb4 {[%emt 0:01:21]} a5 {[%emt 0:02:43]} 37. Be1 {[%emt 0:00:58]} Ke6 {[%emt 0:01:24]} 38. Rf1 {[%emt 0:01:09]} Rc8 {[%emt 0:04:06]} 39. Bg3 {[%emt 0:00:49]} c5 {[%emt 0:03:28]} 40. Rc1 {[%emt 0:00:35]} a4 {[%emt 0:31:05]} 41. Be1 {[%emt 0:11:40]} Kd7 {[%emt 0:00:00]} 42. dxc5 {[%emt 0:03:12]} axb3 {[%emt 0:00:00]} 43. axb3 {[%emt 0:00:12]} bxc5 {[%emt 0:00:00]} 44. e4 {[%emt 0:10:33]} Bg5 {[%emt 0:00:00]} 45. Rc2 {[%emt 0:03:02]} Ke6 {[%emt 0:00:00]} 46. exd5+ {[%emt 0:01:04]} Kxd5 {[%emt 0:00:00]} 47. Bf2 {[%emt 0:02:33]} Be7 {[%emt 0:00:00]} 48. Re2 {[%emt 0:01:29]} Bd6 {[%emt 0:00:00]} 49. Be1 {[%emt 0:00:49]} Rb8 {[%emt 0:00:00]} 50. Kc2 {[%emt 0:01:03]} Ra8 {[%emt 0:00:00]} 51. Bc3 {[%emt 0:00:28]} g5 {[%emt 0:00:00]} 52. Rd2+ {[%emt 0:00:20]} Kc6 {[%emt 0:00:00]} 53. Kd3 {[%emt 0:00:35]} Rb8 {[%emt 0:00:00]} 54. Kc4 {[%emt 0:00:44]} Rf8 {[%emt 0:00:00]} 55. Re2 {[%emt 0:01:00]} Rf4+ {[%emt 0:00:00]} 56. Kd3 {[%emt 0:00:02]} Kd5 {[%emt 0:00:00]} 57. Bd2 {[%emt 0:01:39]} Rf5 {[%emt 0:00:00]} 58. Be3 {[%emt 0:00:31]} g4 {[%emt 0:00:00]} 59. Rf2 {[%emt 0:00:58]} Re5 {[%emt 0:00:00]} 60. Bf4 {[%emt 0:01:11]} Re4 {[%emt 0:00:43]} 61. Bxd6 {[%emt 0:00:08]} Rd4+ {[%emt 0:00:03]} 62. Kc3 {[%emt 0:01:12]} Kxd6 {[%emt 0:00:03]} 63. hxg4 {[%emt 0:00:51]} Rxg4 {[%emt 0:00:34]} 64. Rf5 {[%emt 0:00:35]} h4 {[%emt 0:00:20]} 65. Rh5 {[%emt 0:00:19]} Kc6 {[%emt 0:00:58]} 66. Rh8 {[%emt 0:00:27]} Kd5 {[%emt 0:00:45]} 67. Rh5+ {[%emt 0:00:06]} Kd6 {[%emt 0:00:40]} 68. Rh6+ {[%emt 0:00:08]} Ke5 {[%emt 0:01:58]} 69. Rh5+ {[%emt 0:00:17]} Kf4 {[%emt 0:00:26]} 70. Kc4 {[%emt 0:01:24]} Kg3+ {[%emt 0:00:18]} 71. Kxc5 {[%emt 0:00:06]} Kxg2 {[%emt 0:00:06]} 72. b4 {[%emt 0:00:07]} h3 {[%emt 0:00:19]} 73. b5 {[%emt 0:00:03]} h2 {[%emt 0:00:23]} 74. b6 {[%emt 0:00:07]} h1=Q {[%emt 0:01:17]} 75. Rxh1 {[%emt 0:00:04]} Kxh1 {[%emt 0:00:04]} 76. b7 {[%emt 0:00:06]} Rg8 {[%emt 0:00:10]} 77. Kc6 {[%emt 0:00:05]} Kg2 {[%emt 0:00:19]} 78. Kc7 {[%emt 0:00:05]} Kf3 {[%emt 0:00:03]} 79. b8=Q {[%emt 0:00:08]} Rxb8 {[%emt 0:00:03]} 80. Kxb8 {[%emt 0:00:08]} 1/2-1/2

[Event "US-ch Women 2018"]
[Site "Saint Louis"]
[Date "2018.04.29"]
[Round "11"]
[White "Paikidze, Nazi"]
[Black "Goletiani, Rusudan"]
[Result "1/2-1/2"]
[ECO "B42"]
[WhiteElo "2352"]
[BlackElo "2306"]
[Annotator "ChessBase"]
[PlyCount "75"]
[EventDate "2018.??.??"]
[EventType "tourn"]
[EventCountry "USA"]
[SourceTitle "playchess.com"]
[Source "ChessBase"]
[SourceQuality "1"]
[TimeControl "40/5400+30:1800+30"]

1. e4 {[%emt 0:00:00]} c5 {[%emt 0:00:12]} 2. Nf3 {[%emt 0:00:00]} e6 {[%emt 0:00:08]} 3. d4 {[%emt 0:00:00]} cxd4 {[%emt 0:00:05]} 4. Nxd4 {[%emt 0:00:00]} a6 {[%emt 0:00:19]} 5. Bd3 {[%emt 0:00:00]} Bc5 {[%emt 0:01:08]} 6. Nb3 {[%emt 0:00:04]} Be7 {[%emt 0:00:15]} 7. O-O {[%emt 0:00:25]} Nc6 {[%emt 0:00:56]} 8. f4 {[%emt 0:00:22]} d6 {[%emt 0:02:39]} 9. Nc3 {[%emt 0:00:48]} Nf6 {[%emt 0:00:37]} 10. Qf3 {[%emt 0:00:21]} Qc7 {[%emt 0:02:28]} 11. Be3 {[%emt 0:00:39]} O-O {[%emt 0:09:21]} 12. a3 {[%emt 0:00:16]} Re8 {[%emt 0:02:05]} 13. Rae1 {[%emt 0:13:21]} g6 {[%emt 0:04:35]} 14. g4 {[%emt 0:08:29]} b5 {[%emt 0:07:03]} 15. g5 {[%emt 0:03:27]} Nd7 {[%emt 0:00:59]} 16. Qh3 {[%emt 0:09:48]} b4 {[%emt 0:01:59]} 17. Ne2 {[%emt 0:03:29]} bxa3 {[%emt 0:06:04]} 18. bxa3 {[%emt 0:00:05]} Na5 {[%emt 0:00:43]} 19. Nxa5 {[%emt 0:17:07]} Qxa5 {[%emt 0:00:08]} 20. Qh4 {[%emt 0:06:21]} Bb7 {[%emt 0:07:50]} 21. Bd4 {[%emt 0:04:59]} e5 {[%emt 0:05:01]} 22. fxe5 {[%emt 0:02:57]} Nxe5 {[%emt 0:09:33]} 23. Qf2 {[%emt 0:00:39]} Rf8 {[%emt 0:04:25]} 24. h4 {[%emt 0:00:28]} Rac8 {[%emt 0:08:41]} 25. Nf4 {[%emt 0:01:37]} Qa4 {[%emt 0:03:22]} 26. c3 {[%emt 0:02:32]} Qd7 {[%emt 0:03:53]} 27. Qg3 {[%emt 0:00:40]} Bd8 {[%emt 0:04:10]} 28. Bb1 {[%emt 0:01:41]} Nc4 {[%emt 0:02:53]} 29. Ba2 {[%emt 0:02:54]} Bb6 {[%emt 0:02:18]} 30. Bxc4 {[%emt 0:01:51]} Bxd4+ {[%emt 0:00:03]} 31. cxd4 {[%emt 0:00:03]} Rxc4 {[%emt 0:00:02]} 32. d5 {[%emt 0:00:32]} Re8 {[%emt 0:01:47]} 33. Qf3 {[%emt 0:01:11]} Bc8 {[%emt 0:00:33]} 34. Ng2 {[%emt 0:01:06]} Qc7 {[%emt 0:04:41]} 35. Re3 {[%emt 0:02:25]} a5 {[%emt 0:01:14]} 36. Nf4 {[%emt 0:04:00]} Qd7 {[%emt 0:02:09]} 37. Ng2 {[%emt 0:00:52]} Rc2 {[%emt 0:00:41]} 38. Rf2 {[%emt 0:01:16]} 1/2-1/2

[Event "US-ch Women 2018"]
[Site "Saint Louis"]
[Date "2018.04.29"]
[Round "11"]
[White "Foisor, Sabina-Francesca"]
[Black "Wang, Annie"]
[Result "1-0"]
[ECO "D61"]
[WhiteElo "2308"]
[BlackElo "2321"]
[Annotator "ChessBase"]
[PlyCount "73"]
[EventDate "2018.??.??"]
[EventType "tourn"]
[EventCountry "USA"]
[SourceTitle "playchess.com"]
[Source "ChessBase"]
[SourceQuality "1"]
[TimeControl "40/5400+30:1800+30"]

1. d4 {[%emt 0:00:00]} e6 {[%emt 0:00:07]} 2. c4 {[%emt 0:00:00]} Nf6 {[%emt 0:00:06]} 3. Nf3 {[%emt 0:00:00]} d5 {[%emt 0:00:07]} 4. Bg5 {[%emt 0:00:00]} Be7 {[%emt 0:00:30]} 5. Qc2 {[%emt 0:00:09]} O-O {[%emt 0:01:01]} 6. e3 {[%emt 0:00:12]} Nbd7 {[%emt 0:01:58]} 7. Nc3 {[%emt 0:01:50]} h6 {[%emt 0:02:08]} 8. Bh4 {[%emt 0:00:29]} c5 {[%emt 0:02:24]} 9. cxd5 {[%emt 0:04:41]} cxd4 {[%emt 0:05:04]} 10. Nxd4 {[%emt 0:08:23]} Nxd5 {[%emt 0:00:49]} 11. Bxe7 {[%emt 0:01:42]} Nxe7 {[%emt 0:00:12]} 12. O-O-O {[%emt 0:09:35]} Qa5 {[%emt 0:05:11]} 13. Nb3 {[%emt 0:06:12]} Qe5 {[%emt 0:02:52]} 14. g4 {[%emt 0:02:40]} Nf6 {[%emt 0:02:19]} 15. Be2 {[%emt 0:03:16]} Bd7 {[%emt 0:02:43]} 16. h4 {[%emt 0:14:01]} Rfc8 {[%emt 0:03:52]} 17. Kb1 {[%emt 0:20:40]} Nfd5 {[%emt 0:06:46]} 18. Ka1 {[%emt 0:05:58]} Bc6 {[%emt 0:17:47]} 19. Rhg1 {[%emt 0:01:28]} Nb4 {[%emt 0:07:41]} 20. Qd2 {[%emt 0:01:35]} Ned5 {[%emt 0:07:41]} 21. Nxd5 {[%emt 0:01:20]} Nxd5 {[%emt 0:00:07]} 22. g5 {[%emt 0:00:59]} hxg5 {[%emt 0:02:17]} 23. Rxg5 {[%emt 0:00:43]} Qf6 {[%emt 0:00:17]} 24. Rdg1 {[%emt 0:01:30]} Ne7 {[%emt 0:01:40]} 25. Rxg7+ {[%emt 0:02:04]} Qxg7 {[%emt 0:00:08]} 26. Rxg7+ {[%emt 0:00:04]} Kxg7 27. Qd4+ {[%emt 0:00:22]} f6 {[%emt 0:03:32]} 28. Qd6 {[%emt 0:03:38]} Kf7 {[%emt 0:02:37]} 29. Nc5 {[%emt 0:02:53]} Bd5 {[%emt 0:01:02]} 30. Bh5+ {[%emt 0:00:15]} Kf8 {[%emt 0:01:38]} 31. b4 {[%emt 0:00:43]} Rxc5 {[%emt 0:05:44]} 32. bxc5 {[%emt 0:00:01]} f5 {[%emt 0:06:03]} 33. f3 {[%emt 0:01:27]} Rc8 {[%emt 0:01:34]} 34. e4 {[%emt 0:00:33]} fxe4 {[%emt 0:02:05]} 35. fxe4 {[%emt 0:00:05]} Bxe4 {[%emt 0:00:40]} 36. Qxe6 {[%emt 0:00:15]} Bd5 {[%emt 0:00:19]} 37. Qf6+ {[%emt 0:00:10]} 1-0

[Event "US-ch Women 2018"]
[Site "Saint Louis"]
[Date "2018.04.29"]
[Round "11"]
[White "Derakhshani, Dorsa"]
[Black "Feng, Maggie"]
[Result "1/2-1/2"]
[ECO "C18"]
[WhiteElo "2306"]
[BlackElo "2243"]
[Annotator "ChessBase"]
[PlyCount "47"]
[EventDate "2018.??.??"]
[EventType "tourn"]
[EventCountry "USA"]
[SourceTitle "playchess.com"]
[Source "ChessBase"]
[SourceQuality "1"]
[TimeControl "40/5400+30:1800+30"]

1. e4 {[%emt 0:00:00]} e6 {[%emt 0:00:21]} 2. d4 {[%emt 0:00:00]} d5 {[%emt 0:00:16]} 3. Nc3 {[%emt 0:00:00]} Bb4 {[%emt 0:00:32]} 4. e5 {[%emt 0:00:00]} Ne7 {[%emt 0:00:48]} 5. a3 {[%emt 0:00:03]} Bxc3+ {[%emt 0:00:18]} 6. bxc3 {[%emt 0:00:05]} c5 {[%emt 0:00:37]} 7. Qg4 {[%emt 0:00:06]} O-O {[%emt 0:00:30]} 8. Bd3 {[%emt 0:00:13]} Nbc6 {[%emt 0:00:18]} 9. Nf3 {[%emt 0:00:58]} f5 {[%emt 0:01:06]} 10. exf6 {[%emt 0:01:07]} Rxf6 {[%emt 0:00:19]} 11. Qh5 {[%emt 0:01:48]} h6 {[%emt 0:01:16]} 12. O-O {[%emt 0:05:11]} c4 {[%emt 0:02:36]} 13. Be2 {[%emt 0:00:13]} Bd7 {[%emt 0:01:18]} 14. Nh4 {[%emt 0:06:47]} Nf5 {[%emt 0:12:26]} 15. Nxf5 {[%emt 0:09:02]} exf5 {[%emt 0:02:50]} 16. Bf4 {[%emt 0:10:25]} Be8 {[%emt 0:08:07]} 17. Qf3 {[%emt 0:01:26]} Qd7 {[%emt 0:03:52]} 18. h4 {[%emt 0:13:16]} Rf8 {[%emt 0:06:16]} 19. Qg3 {[%emt 0:07:50]} Kh7 {[%emt 0:02:27]} 20. Bd6 {[%emt 0:05:28]} Rf6 {[%emt 0:06:03]} 21. Bf4 {[%emt 0:01:43]} Rf8 {[%emt 0:07:33]} 22. Bd6 {[%emt 0:01:05]} Rf6 {[%emt 0:02:13]} 23. Bf4 {[%emt 0:00:13]} Rf8 {[%emt 0:00:25]} 24. Bd6 {[%emt 0:00:21]} 1/2-1/2

[Event "US-ch Women 2018"]
[Site "Saint Louis"]
[Date "2018.04.29"]
[Round "11"]
[White "Sharevich, Anna"]
[Black "Gorti, Akshita"]
[Result "1-0"]
[ECO "A40"]
[WhiteElo "2281"]
[BlackElo "2252"]
[Annotator "ChessBase"]
[PlyCount "85"]
[EventDate "2018.??.??"]
[EventType "tourn"]
[EventCountry "USA"]
[SourceTitle "playchess.com"]
[Source "ChessBase"]
[SourceQuality "1"]
[TimeControl "40/5400+30:1800+30"]

1. d4 {[%emt 0:00:00]} e6 {[%emt 0:00:06]} 2. Nf3 {[%emt 0:00:00]} d5 {[%emt 0:01:00]} 3. Bf4 {[%emt 0:02:14]} Nf6 {[%emt 0:00:20]} 4. e3 {[%emt 0:00:24]} Bd6 {[%emt 0:00:21]} 5. Bg3 {[%emt 0:01:26]} O-O {[%emt 0:00:56]} 6. Nbd2 {[%emt 0:00:37]} b6 {[%emt 0:01:08]} 7. Bd3 {[%emt 0:00:55]} Bb7 {[%emt 0:00:17]} 8. Qe2 {[%emt 0:01:15]} Ne4 {[%emt 0:01:57]} 9. c3 {[%emt 0:04:05]} Nd7 {[%emt 0:05:33]} 10. Ba6 {[%emt 0:11:12]} Bxa6 {[%emt 0:07:27]} 11. Qxa6 {[%emt 0:00:03]} f5 {[%emt 0:02:09]} 12. Qe2 {[%emt 0:04:50]} Qe7 {[%emt 0:02:29]} 13. Bxd6 {[%emt 0:09:41]} cxd6 {[%emt 0:05:52]} 14. O-O {[%emt 0:03:17]} Ndf6 {[%emt 0:04:19]} 15. Ne1 {[%emt 0:02:04]} e5 {[%emt 0:02:37]} 16. Nb3 {[%emt 0:05:58]} Nd7 {[%emt 0:04:24]} 17. a4 {[%emt 0:05:07]} a5 {[%emt 0:07:38]} 18. Qb5 {[%emt 0:06:00]} Nef6 {[%emt 0:01:42]} 19. c4 {[%emt 0:05:21]} dxc4 {[%emt 0:05:36]} 20. Qxc4+ {[%emt 0:03:13]} d5 {[%emt 0:00:28]} 21. Qb5 {[%emt 0:04:13]} e4 {[%emt 0:00:26]} 22. Nc1 {[%emt 0:05:04]} Qd6 {[%emt 0:07:34]} 23. Ne2 {[%emt 0:00:22]} g5 {[%emt 0:00:42]} 24. f4 {[%emt 0:05:09]} exf3 {[%emt 0:02:18]} 25. Nxf3 {[%emt 0:02:04]} Ng4 {[%emt 0:02:40]} 26. Ra3 {[%emt 0:00:16]} Rae8 {[%emt 0:03:31]} 27. Rc1 {[%emt 0:02:12]} Nxe3 {[%emt 0:06:37]} 28. Rc6 {[%emt 0:00:56]} Qb4 {[%emt 0:01:37]} 29. Rb3 {[%emt 0:07:51]} Qxb5 {[%emt 0:00:58]} 30. Rxb5 {[%emt 0:00:13]} g4 {[%emt 0:12:00]} 31. Ng5 {[%emt 0:01:48]} Nxg2 {[%emt 0:01:42]} 32. Rxd5 {[%emt 0:02:05]} Nb8 {[%emt 0:04:30]} 33. Re6 {[%emt 0:00:12]} Nh4 {[%emt 0:01:51]} 34. Kf2 {[%emt 0:02:25]} Rxe6 {[%emt 0:01:54]} 35. Nxe6 {[%emt 0:00:02]} Re8 {[%emt 0:00:28]} 36. N2f4 {[%emt 0:01:44]} Nc6 {[%emt 0:01:45]} 37. Rd6 {[%emt 0:00:43]} Nb4 {[%emt 0:00:47]} 38. Rxb6 {[%emt 0:00:30]} Rc8 {[%emt 0:00:23]} 39. d5 {[%emt 0:01:16]} Nf3 {[%emt 0:01:12]} 40. d6 {[%emt 0:00:59]} Ne5 {[%emt 0:30:34]} 41. Rb7 {[%emt 0:31:37]} Rc2+ {[%emt 0:00:00]} 42. Kg3 {[%emt 0:00:00]} Nbc6 {[%emt 0:00:00]} 43. Nd5 1-0